bitfinex/quotes_ETHUSD_20250810
["timestamp","ask_amount","ask_price","bid_price","bid_amount"]
[1754843760899,1e-08,4239.3,4239.2,19.40230644]
[1754843762039,1e-08,4239.3,4239.2,11.17415034]
[1754843762210,1e-08,4239.3,4239.2,14.77215034]
[1754843763009,0.49690001,4239.3,4239.2,14.77215034]
[1754843763205,0.49690001,4239.3,4239.2,10.46215034]
[1754843763513,0.93800001,4239.3,4239.2,10.46215034]
[1754843765839,0.49690001,4239.3,4239.2,6.56913564]
[1754843766137,0.93800001,4239.3,4239.2,6.56913564]
[1754843766930,0.93800001,4239.3,4239.2,0.6122]
[1754843767643,0.93800001,4239.3,4239.2,0.1176]
[1754843770930,3.29688001,4239.3,4239.2,0.1176]
[1754843771117,1.50593512,4239.3,4239.2,0.1176]
[1754843772021,0.93800001,4239.3,4239.2,0.1176]
[1754843776437,0.49690001,4239.3,4239.2,2.47653564]
[1754843776638,0.49690001,4239.3,4239.2,0.1176]
[1754843776937,1e-08,4239.3,4239.2,7.00293564]
[1754843777468,1e-08,4239.3,4239.2,6.57243564]
[1754843777656,1e-08,4239.3,4239.2,7.50858724]
[1754843777969,0.48240001,4239.3,4239.2,2.97343564]
[1754843778680,0.91850001,4239.3,4239.2,0.6145]
[1754843779057,0.91850001,4239.3,4239.2,2.97343564]
[1754843779257,1e-08,4239.3,4239.2,2.97343564]
[1754843779649,1e-08,4239.3,4239.2,3.86668348]
[1754843780072,1e-08,4239.3,4239.2,2.97343564]
[1754843780276,0.48240001,4239.3,4239.2,2.97343564]
[1754843780473,1e-08,4239.3,4239.2,2.97343564]
[1754843783869,0.48240001,4239.3,4239.2,0.6145]
[1754843784056,0.91850001,4239.3,4239.2,2.97343564]
[1754843784379,0.91850001,4239.3,4239.2,0.6145]
[1754843784693,0.91850001,4239.3,4239.2,2.97343564]
[1754843785582,0.48240001,4239.3,4239.2,2.97343564]
[1754843788389,1e-08,4239.3,4239.2,3.93688356]
[1754843788688,1e-08,4239.3,4239.2,4.38828356]
[1754843788888,1e-08,4239.3,4239.2,7.38828356]
[1754843791589,1e-08,4239.3,4239.2,10.53488356]
[1754843791778,1e-08,4239.3,4239.2,10.98628356]
[1754843791974,1e-08,4239.3,4239.2,6.93688356]
[1754843792179,1e-08,4239.3,4239.2,10.53488356]
[1754843792967,1e-08,4239.3,4239.2,10.98628356]
[1754843793997,0.002,4239.8,4239.2,10.98628356]
[1754843794297,0.04,4239.9,4239.8,5.35860182]
[1754843794298,1e-08,4239.9,4239.8,5.35860182]
[1754843794496,1e-08,4239.9,4239.8,8.95660182]
[1754843794789,1e-08,4239.9,4239.8,9.83810182]
[1754843794967,1e-08,4239.9,4239.8,12.23013676]
[1754843795174,0.04,4241.9,4240.4,2.35826271]
[1754843795370,0.04,4241.9,4241.8,2.35748974]
[1754843795574,0.5030317,4243.9,4241.8,5.038]
[1754843795797,1.39406914,4245.4,4243.8,2.47395878]
[1754843796102,0.5224,4245.9,4244.8,2.35582359]
[1754843796396,0.4824,4245.2,4244.4,2.35604561]
[1754843796601,0.04,4245.9,4242.2,1.6800438]
[1754843796602,0.4824,4244.8,4242.2,1.6800438]
[1754843796796,0.4824,4244.8,4242.8,0.4301]
[1754843796797,0.02369965,4244.7,4242.8,0.4301]
[1754843796972,0.9185,4244.6,4243.3,2.35664654]
[1754843797161,0.4824,4244.6,4243.4,3.663]
[1754843797371,0.4824,4244.6,4243.5,3.663]
[1754843797585,0.45979965,4244.5,4243.3,3.677]
[1754843797786,0.45979965,4244.5,4242.5,0.4514]
[1754843797787,0.50609965,4244.4,4243.0,2.35678596]
[1754843797996,0.9861,4244.3,4242.7,2.35698965]
[1754843798195,0.55,4244.1,4243.0,2.35681177]
[1754843798400,2.35639885,4243.8,4242.8,2.35690345]
[1754843798610,0.94219965,4243.7,4242.5,2.35706309]
[1754843798805,0.9185,4243.6,4242.9,2.35687108]
[1754843799216,0.9185,4243.6,4242.4,3.68]
[1754843799217,0.9185,4243.6,4243.0,2.3568227]
[1754843799592,0.9185,4243.6,4242.8,2.35688312]
[1754843799887,0.4824,4243.7,4243.1,2.35672793]
[1754843800207,0.4361,4243.6,4242.8,3.677]
[1754843800508,0.4824,4243.5,4243.1,2.35675055]
[1754843800709,0.9185,4243.4,4242.5,0.707904]
[1754843801034,0.9185,4243.3,4242.2,2.35723582]
[1754843801174,0.02369965,4243.2,4242.2,2.35723582]
[1754843801379,0.57369965,4243.1,4241.2,0.4301]
[1754843801583,0.55,4242.9,4241.5,0.708069]
[1754843801784,2.3570452,4242.6,4241.5,0.708069]
[1754843802124,3.27560076,4242.5,4241.6,2.39759798]
[1754843802292,3.27567948,4242.4,4241.6,0.04]
[1754843802494,0.4824,4242.3,4241.6,0.04]
[1754843802694,0.32756795,4242.2,4241.6,0.04]
[1754843802887,2.83962269,4242.3,4241.6,0.04]
[1754843803093,0.4824,4242.2,4241.6,0.04]
[1754843803312,0.02369965,4242.1,4241.6,0.04]
[1754843803582,2.90754532,4241.7,4241.6,0.04]
[1754843803884,3.82604532,4241.7,4241.6,0.04]
[1754843804093,4.44676569,4241.7,4241.6,0.04]
[1754843805090,8.12476569,4241.7,4241.6,0.04]
[1754843805409,4.44676569,4241.7,4241.6,0.04]
[1754843805609,2.08922037,4241.7,4241.6,0.04]
[1754843805782,1.4685,4241.7,4241.6,0.04]
[1754843805978,3.0,4242.1,4241.6,0.1576]
[1754843806183,0.4824,4242.2,4241.6,0.1576]
[1754843806383,0.4824,4242.2,4242.0,0.1176]
[1754843806791,0.20421997,4242.8,4242.0,0.1176]
[1754843806983,0.20421997,4242.8,4242.7,0.1176]
[1754843807497,4.6156,4243.8,4242.7,0.1176]
[1754843807809,0.04,4244.9,4242.5,3.679]
[1754843808016,0.04,4244.9,4244.8,0.1176]
[1754843808625,0.5344,4244.9,4244.8,0.1176]
[1754843810146,3.88236809,4244.9,4244.8,0.1176]
[1754843810622,4.8758734,4244.9,4244.8,0.1176]
[1754843810991,2.35593459,4244.6,4243.8,2.35635996]
[1754843811221,0.4944,4244.8,4244.6,0.1176]
[1754843811395,0.04,4244.9,4244.6,0.1176]
[1754843811802,0.04,4244.9,4244.5,2.35596402]
[1754843812008,0.04,4244.9,4244.8,0.1176]
[1754843812405,0.04,4244.9,4244.8,0.1168]
[1754843812731,0.04,4244.9,4244.8,2.92372359]
[1754843813297,0.04,4244.9,4244.8,0.1168]
[1754843813508,0.5344,4244.9,4244.8,0.1168]
[1754843813708,4.2334,4244.9,4244.8,0.1168]
[1754843813940,2.3559246,4244.7,4244.1,0.70764]
[1754843814140,7.87037283,4244.9,4243.6,2.35643591]
[1754843814141,2.35599262,4244.5,4243.6,2.35643591]
[1754843814297,0.4944,4244.4,4243.7,2.3564305]
[1754843814733,0.4944,4244.4,4244.3,0.1176]
[1754843815516,4.1934,4244.4,4244.3,0.1176]
[1754843815718,0.4944,4244.4,4244.3,0.1176]
[1754843816053,4.1924,4244.4,4244.3,0.1176]
[1754843816443,6.99064561,4244.4,4244.3,0.1176]
[1754843816842,8.4753056,4244.4,4244.3,0.1176]
[1754843817971,2.35631698,4244.0,4243.1,2.3567156]
[1754843818165,0.4944,4243.9,4243.0,2.356823]
[1754843818464,3.695,4243.8,4243.2,2.35665657]
[1754843818938,3.695,4243.8,4243.7,0.1176]
[1754843818939,6.05137871,4243.8,4243.7,0.1176]
[1754843819144,7.92239784,4243.8,4243.7,0.1176]
[1754843820853,8.47239784,4243.8,4243.7,0.1176]
[1754843822353,2.35652082,4243.6,4242.7,0.4511]
[1754843822549,0.4944,4243.5,4242.4,0.4511]
[1754843822888,3.40095584,4243.5,4243.4,0.1176]
[1754843823090,7.80535688,4243.5,4243.4,0.1176]
[1754843823291,8.24755688,4243.5,4243.4,0.1176]
[1754843823858,5.44880104,4243.5,4243.4,0.1176]
[1754843824288,7.80534634,4243.5,4243.4,0.1176]
[1754843824652,7.80434634,4243.5,4243.4,0.1176]
[1754843825396,8.24654634,4243.5,4243.4,0.1176]
[1754843825695,2.90665637,4243.3,4243.2,0.1176]
[1754843826006,3.9669802,4243.3,4243.2,0.1176]
[1754843826286,2.35685773,4243.0,4242.2,0.4511]
[1754843826486,3.688,4242.9,4242.8,0.1176]
[1754843826860,6.04487855,4242.9,4242.8,0.1176]
[1754843827067,8.24205188,4242.9,4242.8,0.1176]
[1754843827250,2.35707786,4242.6,4242.5,0.1176]
[1754843827468,2.90707786,4242.6,4242.5,0.1176]
[1754843827712,3.40147786,4242.6,4242.5,0.1176]
[1754843829400,7.08847786,4242.6,4242.5,0.1176]
[1754843830493,2.35742589,4242.0,4241.6,0.041]
[1754843830696,3.684,4241.9,4241.6,0.041]
[1754843830893,3.684,4241.8,4241.6,0.041]
[1754843831085,3.684,4241.7,4241.6,0.041]
[1754843831406,0.55,4242.4,4241.8,0.1176]
[1754843831700,0.55,4242.4,4241.6,0.041]
[1754843831701,2.35732302,4242.1,4242.0,0.1176]
[1754843831898,2.85172302,4242.1,4242.0,0.1176]
[1754843832313,0.55,4242.2,4242.0,0.1176]
[1754843832314,2.90728153,4242.2,4242.0,0.1176]
[1754843832519,0.4944,4243.2,4241.6,0.041]
[1754843832666,3.0,4243.0,4242.9,0.1176]
[1754843832865,9.040823,4243.0,4242.9,0.1176]
[1754843833106,9.535223,4243.0,4242.9,0.1176]
[1754843833403,10.085223,4243.0,4242.9,0.1176]
[1754843833896,4.234,4243.0,4242.9,0.1176]
[1754843834268,3.683,4243.0,4242.9,0.1176]
[1754843834672,2.35667997,4243.3,4242.9,0.1176]
[1754843834871,3.58377414,4243.8,4242.9,0.1176]
[1754843835210,4.61833741,4243.7,4243.2,0.1176]
[1754843835578,0.55,4243.6,4243.2,0.5687]
[1754843835777,3.681,4243.5,4243.2,0.5687]
[1754843836097,3.681,4243.4,4243.3,0.4511]
[1754843836467,3.681,4243.4,4243.3,0.5687]
[1754843837300,3.681,4243.4,4243.3,2.92535637]
[1754843837500,4.231,4243.4,4243.3,0.1176]
[1754843837699,2.35687922,4242.9,4242.2,2.35726047]
[1754843837913,8.5217,4243.4,4242.3,2.80880444]
[1754843837914,3.682,4242.8,4242.3,2.80880444]
[1754843838083,3.682,4242.8,4242.3,2.35720444]
[1754843838272,3.682,4242.8,4242.7,0.1176]
[1754843838586,3.682,4242.8,4242.7,0.5692]
[1754843839003,3.682,4242.8,4242.7,2.92618965]
[1754843839498,2.35616576,4244.2,4242.7,2.92618965]
[1754843839499,3.681,4243.5,4242.7,1.54893443]
[1754843839698,3.689,4243.5,4243.2,2.35666122]
[1754843840003,3.689,4243.5,4243.4,0.1176]
[1754843840299,3.689,4243.5,4243.4,0.5692]
[1754843841401,3.689,4243.5,4243.4,0.1176]
[1754843842302,3.689,4243.5,4243.4,0.5692]
[1754843843202,3.689,4243.5,4243.4,0.1176]
[1754843844509,0.002,4243.9,4243.4,0.1176]
[1754843844682,3.684,4243.8,4243.4,0.1176]
[1754843845005,3.684,4243.8,4243.1,2.35671665]
[1754843845190,3.684,4243.8,4243.7,0.1176]
[1754843847513,6.04037871,4243.8,4243.7,0.1176]
[1754843847713,4.1464,4243.8,4243.7,0.1176]
[1754843848017,3.684,4243.8,4243.7,0.1176]
[1754843848514,6.50277871,4243.8,4243.7,0.1176]
[1754843848718,6.96297871,4243.8,4243.7,0.1176]
[1754843848894,0.55,4243.7,4242.6,2.35702376]
[1754843849083,2.35664629,4243.4,4242.7,2.35698375]
[1754843849283,3.678,4243.3,4242.7,2.35698375]
[1754843849486,6.03466543,4243.3,4243.2,0.1176]
[1754843849713,6.49706543,4243.3,4243.2,0.1176]
[1754843849881,4.1404,4243.3,4243.2,0.1176]
[1754843850303,6.49705637,4243.3,4243.2,0.1176]
[1754843850503,6.95725637,4243.3,4243.2,0.1176]
[1754843850706,7.88863786,4243.3,4243.2,0.1176]
[1754843851103,7.42843786,4243.3,4243.2,0.1176]
[1754843851318,6.49705637,4243.3,4243.2,0.1176]
[1754843851698,4.1404,4243.3,4243.2,0.1176]
[1754843852101,6.49705637,4243.3,4243.2,0.1176]
[1754843852612,4.1404,4243.3,4243.2,0.1176]
[1754843852993,0.002,4243.9,4243.0,0.4516]
[1754843853217,3.674,4243.8,4243.4,2.35658519]
[1754843853416,0.002,4243.9,4243.8,0.1176]
[1754843853717,3.677,4243.9,4243.8,0.1176]
[1754843854288,0.002,4243.9,4243.8,0.5692]
[1754843854503,3.676,4243.9,4243.8,0.5692]
[1754843855018,3.676,4243.9,4243.8,2.92557871]
[1754843855317,3.675,4243.9,4243.8,2.92557871]
[1754843855512,3.675,4243.9,4243.8,3.45378532]
[1754843856790,3.675,4243.9,4243.8,0.1176]
[1754843857917,4.1374,4243.9,4243.8,0.1176]
[1754843859019,7.04372319,4243.9,4243.8,0.1176]
[1754843859220,7.50392319,4243.9,4243.8,0.1176]
[1754843859918,7.04372319,4243.9,4243.8,0.1176]
[1754843860119,7.98371756,4243.9,4243.8,0.1176]
[1754843860787,5.16499437,4243.9,4243.8,0.1176]
[1754843861494,7.52131756,4243.9,4243.8,0.1176]
[1754843861824,7.98371756,4243.9,4243.8,0.1176]
[1754843863124,8.44391756,4243.9,4243.8,0.1176]
[1754843863326,11.44391756,4243.9,4243.8,0.1176]
[1754843863541,0.002,4243.9,4243.8,0.5692]
[1754843863842,3.675,4243.9,4243.8,0.5692]
[1754843864694,3.673,4243.9,4243.8,0.5692]
[1754843865103,3.673,4243.9,4243.8,2.92557871]
[1754843865432,3.673,4243.9,4243.8,0.5692]
[1754843866200,4.1354,4243.9,4243.8,0.1176]
[1754843866800,3.673,4243.9,4243.8,0.1176]
[1754843867002,3.673,4243.9,4243.8,0.5692]
[1754843867626,3.673,4243.9,4243.8,0.1176]
[1754843869020,4.1558,4243.9,4243.8,0.1176]
[1754843869217,7.68165336,4243.9,4243.8,0.1176]
[1754843869525,6.98332319,4243.9,4243.8,0.1176]
[1754843870134,7.53332319,4243.9,4243.8,0.1176]
[1754843871165,0.55,4243.8,4243.4,0.1176]
[1754843871363,0.55,4243.6,4243.4,0.1176]
[1754843871533,6.57355047,4243.5,4243.4,0.1176]
[1754843871968,7.05635047,4243.5,4243.4,0.1176]
[1754843872364,7.52755047,4243.5,4243.4,0.1176]
[1754843872937,7.05635047,4243.5,4243.4,0.1176]
[1754843873462,8.09769659,4243.5,4243.4,0.1176]
[1754843873863,7.61489659,4243.5,4243.4,0.1176]
[1754843874040,6.57355047,4243.5,4243.4,0.1176]
[1754843874242,7.05635047,4243.5,4243.4,0.1176]
[1754843875849,2.35672227,4243.2,4242.7,0.001]
[1754843876041,6.0187763,4243.1,4242.7,0.001]
[1754843876250,3.662,4243.0,4242.7,0.001]
[1754843876644,3.662,4243.0,4242.9,0.1176]
[1754843882031,6.501623,4243.0,4242.9,0.1176]
[1754843882174,3.662,4243.0,4242.9,0.1176]
[1754843882381,3.657,4243.0,4242.9,0.1176]
[1754843882626,3.657,4243.0,4242.9,0.5779]
[1754843883183,0.55,4243.3,4242.9,0.5779]
[1754843883384,0.002,4243.9,4243.0,0.4603]
[1754843883768,3.657,4243.8,4243.5,0.1176]
[1754843884080,6.01338091,4243.8,4243.5,0.1176]
[1754843884517,2.35647217,4243.7,4243.2,0.4603]
[1754843884677,0.55,4243.5,4242.7,0.001]
[1754843885024,0.55,4243.7,4243.4,0.1176]
[1754843885174,0.55,4243.5,4243.4,0.1176]
[1754843885613,3.656,4243.6,4243.4,0.5779]
[1754843885822,3.657,4243.5,4243.4,0.1176]
[1754843886183,7.5175453,4243.5,4243.4,0.1176]
[1754843886525,8.50494412,4243.5,4243.4,0.1176]
[1754843886689,8.03374412,4243.5,4243.4,0.1176]
[1754843887804,5.67719882,4243.5,4243.4,0.1176]
[1754843888005,3.657,4243.5,4243.4,0.1176]
[1754843888431,3.657,4243.5,4243.4,0.5779]
[1754843890423,3.657,4243.5,4243.4,0.1176]
[1754843894499,6.4963453,4243.5,4243.4,0.1176]
[1754843894732,7.90782296,4243.5,4243.4,0.1176]
[1754843894927,8.45782296,4243.5,4243.4,0.1176]
[1754843895829,0.55,4243.2,4242.9,0.001]
[1754843896033,3.65,4243.1,4242.9,0.001]
[1754843896847,6.48957,4243.1,4243.0,0.1176]
[1754843897133,7.02796745,4243.1,4243.0,0.1176]
[1754843897625,3.649,4243.1,4243.0,0.1176]
[1754843897802,0.002,4243.9,4243.0,0.85827331]
[1754843898000,2.3565325,4243.6,4243.4,0.1176]
[1754843898249,3.649,4243.5,4243.4,0.5658]
[1754843898430,3.65,4243.5,4243.4,0.1176]
[1754843898612,6.4986453,4243.5,4243.4,0.1176]
[1754843898812,4.1421,4243.5,4243.4,0.1176]
[1754843899027,3.65,4243.5,4243.4,0.5658]
[1754843900910,3.65,4243.5,4243.4,0.1176]
[1754843902417,3.65,4243.5,4243.4,3.16982564]
[1754843903460,3.65,4243.5,4243.4,2.92240083]
[1754843904705,3.65,4243.5,4243.4,0.5658]
[1754843905111,3.65,4243.5,4243.4,0.1176]
[1754843905713,3.65,4243.5,4243.4,2.47420083]
[1754843905952,3.65,4243.5,4243.4,2.92240083]
[1754843906324,3.65,4243.5,4243.4,0.1176]
[1754843907211,4.1421,4243.5,4243.4,0.1176]
[1754843907625,6.9363453,4243.5,4243.4,0.1176]
[1754843907944,8.41562295,4243.5,4243.4,0.1176]
[1754843908816,0.55,4243.0,4242.9,0.001]
[1754843909133,4.192,4243.0,4242.9,0.1186]
[1754843909313,4.6841,4243.0,4242.9,0.1186]
[1754843911371,5.1218,4243.0,4242.9,0.1186]
[1754843911620,4.6841,4243.0,4242.9,0.1186]
[1754843913417,7.040923,4243.0,4242.9,0.1186]
[1754843913743,4.6841,4243.0,4242.9,0.1186]
[1754843914922,7.040923,4243.0,4242.9,0.1186]
[1754843915120,8.46215169,4243.0,4242.9,0.001]
[1754843915418,8.57975169,4243.0,4242.9,0.001]
[1754843917232,38.57975169,4243.0,4242.9,0.001]
[1754843917541,39.08816774,4243.0,4242.9,0.001]
[1754843917752,38.65046774,4243.0,4242.9,0.001]
[1754843917946,39.08816774,4243.0,4242.9,0.001]
[1754843920234,38.57975169,4243.0,4242.9,0.001]
[1754843929952,38.57975169,4243.0,4242.7,0.001]
[1754843929953,0.55,4242.8,4242.7,0.001]
[1754843930170,41.85197478,4242.8,4242.7,0.001]
[1754843930359,42.35950473,4242.8,4242.7,0.001]
[1754843930561,43.27620473,4242.8,4242.7,0.001]
[1754843932167,43.27620473,4242.8,4241.4,0.001]
[1754843932168,2.90765648,4241.5,4241.4,0.001]
[1754843932374,43.69472053,4241.5,4241.4,0.001]
[1754843932678,45.74279776,4241.5,4241.4,0.001]
[1754843933188,45.96306182,4241.5,4241.4,0.001]
[1754843935562,45.96223109,4241.5,4241.4,0.001]
[1754843936190,45.96223109,4241.5,4240.3,0.001]
[1754843936191,2.90804565,4240.8,4240.3,0.001]
[1754843936435,39.83085022,4240.8,4240.3,0.001]
[1754843936771,40.30255022,4240.8,4240.3,0.001]
[1754843938079,39.83085022,4240.8,4240.3,0.4673]
[1754843938262,39.83085022,4240.8,4240.7,0.4673]
[1754843938587,3.55,4240.8,4240.7,0.001]
[1754843938748,6.54004565,4240.8,4240.7,0.4673]
[1754843939676,4.182,4240.8,4240.7,0.4673]
[1754843940594,6.54004565,4240.8,4240.7,0.4673]
[1754843940800,7.35119751,4240.8,4240.7,0.001]
[1754843941000,40.35119751,4240.8,4240.7,0.001]
[1754843941174,41.26789751,4240.8,4240.7,0.001]
[1754843941917,40.35119751,4240.8,4240.7,0.001]
[1754843942064,3.19987092,4242.2,4240.7,0.4673]
[1754843942065,5.661,4241.7,4240.7,0.4673]
[1754843942259,2.35804565,4240.8,4240.7,0.4673]
[1754843942461,4.18,4240.8,4240.7,0.9187]
[1754843943494,3.63,4240.8,4240.7,0.9187]
[1754843943697,3.63,4240.8,4240.7,3.27680125]
[1754843943917,3.63,4240.8,4240.7,0.9187]
[1754843945470,3.63,4240.8,4240.7,0.4673]
[1754843945878,3.63,4240.8,4240.7,0.9187]
[1754843946078,3.63,4240.8,4240.7,3.27680125]
[1754843946283,3.63,4240.8,4240.7,3.85606043]
[1754843946503,3.63,4240.8,4240.7,3.97366043]
[1754843947211,8.01860025,4241.7,4240.7,3.97366043]
[1754843947212,5.661,4241.7,4240.7,1.61555918]
[1754843947399,3.631,4241.6,4240.7,0.1186]
[1754843947573,4.181,4241.6,4241.5,0.1176]
[1754843947998,4.181,4241.6,4241.5,0.5839]
[1754843949584,4.181,4241.6,4241.5,0.5849]
[1754843950610,3.629,4241.6,4241.5,0.9187]
[1754843950905,2.64735632,4242.8,4241.8,2.35747953]
[1754843951104,3.629,4242.7,4242.0,2.3573522]
[1754843951278,3.629,4242.7,4242.1,0.4663]
[1754843951476,5.35706687,4242.6,4242.1,0.4663]
[1754843951688,5.35706687,4242.6,4241.5,2.35861384]
[1754843951689,2.90735791,4242.1,4242.0,0.1176]
[1754843951886,4.179,4242.1,4241.8,0.1176]
[1754843952291,6.53634359,4242.1,4241.8,0.1176]
[1754843952485,3.629,4242.1,4241.9,0.4663]
[1754843952688,3.629,4242.1,4242.0,0.569]
[1754843952894,3.629,4242.1,4242.0,1.0353]
[1754843953474,3.629,4242.1,4242.0,0.5839]
[1754843955213,3.629,4242.1,4242.0,1.0353]
[1754843955619,3.629,4242.1,4242.0,1.743448]
[1754843955819,3.629,4242.1,4242.0,1.292048]
[1754843956023,0.55,4242.6,4242.0,1.292048]
[1754843956191,0.17786543,4242.8,4242.0,1.292048]
[1754843956192,5.98610553,4242.5,4242.0,1.292048]
[1754843956391,6.53610553,4242.5,4242.4,0.1176]
[1754843956723,4.179,4242.5,4242.4,0.1176]
[1754843956902,6.53610076,4242.5,4242.4,0.1176]
[1754843957101,4.179,4242.5,4242.4,0.1176]
[1754843957320,4.179,4242.5,4242.4,0.5839]
[1754843957524,6.53610076,4242.5,4242.4,0.5839]
[1754843957708,4.179,4242.5,4242.4,0.1176]
[1754843958219,3.628,4242.5,4242.4,0.5716]
[1754843959938,3.628,4242.5,4242.4,0.1176]
[1754843960340,3.628,4242.5,4242.4,0.5716]
[1754843961756,0.1176,4243.0,4242.4,0.1176]
[1754843962040,7.172,4243.8,4242.4,0.1176]
[1754843962041,3.625,4242.9,4242.8,2.3569341]
[1754843962344,3.625,4242.9,4242.5,2.35709982]
[1754843962835,3.625,4242.9,4242.6,0.454]
[1754843963338,3.625,4242.9,4242.7,0.454]
[1754843963842,0.458,4243.6,4242.5,0.708076]
[1754843964001,0.55,4243.4,4242.5,3.06516953]
[1754843964200,2.35680878,4243.1,4242.5,0.708076]
[1754843964503,3.637,4243.0,4242.5,0.708076]
[1754843964740,3.637,4243.0,4242.6,2.81104168]
[1754843964913,3.637,4243.0,4242.8,2.35692816]
[1754843965111,3.637,4243.0,4242.8,0.454]
[1754843966204,2.35650647,4243.6,4242.9,2.81087855]
[1754843966492,3.637,4243.5,4243.0,0.454]
[1754843966755,3.637,4243.4,4243.0,0.454]
[1754843966908,3.637,4243.4,4242.8,0.4514]
[1754843967104,3.0,4243.3,4243.1,1.161942]
[1754843968635,3.0,4243.3,4243.1,0.707942]
[1754843969177,3.458,4243.3,4242.8,2.35692393]
[1754843969453,3.458,4243.3,4242.7,3.51897224]
[1754843969855,3.458,4243.3,4242.8,2.35691881]
[1754843970353,3.458,4243.3,4242.7,2.35698349]
[1754843970558,5.81467383,4243.3,4242.6,2.35703407]
[1754843970752,3.458,4243.3,4242.7,2.35698507]
[1754843971761,3.458,4243.3,4242.6,2.35704152]
[1754843972057,3.458,4243.3,4243.2,0.1176]
[1754843972058,5.81465637,4243.3,4243.2,0.1176]
[1754843972264,7.44447138,4243.3,4243.2,0.1176]
[1754843972765,0.55,4243.2,4242.2,0.454]
[1754843972927,4.183,4243.1,4243.0,0.1176]
[1754843973361,4.641,4243.1,4243.0,0.1176]
[1754843973562,6.99776745,4243.1,4243.0,0.1176]
[1754843973925,4.641,4243.1,4243.0,0.1176]
[1754843974440,6.99776745,4243.1,4243.0,0.1176]
[1754843974637,8.39618672,4243.1,4243.0,0.1176]
[1754843974841,8.84518672,4243.1,4243.0,0.1176]
[1754843975849,0.55,4242.7,4242.0,2.81136504]
[1754843976062,3.631,4242.6,4242.0,2.81136504]
[1754843976448,3.631,4242.6,4242.5,0.1176]
[1754843976624,4.089,4242.6,4242.5,0.1176]
[1754843977843,3.631,4242.6,4242.5,0.1176]
[1754843978056,7.69563916,4242.6,4242.5,0.1176]
[1754843978239,2.90716146,4242.4,4242.3,0.1176]
[1754843978442,6.53616146,4242.4,4242.3,0.1176]
[1754843978662,6.99416146,4242.4,4242.3,0.1176]
[1754843979167,0.55,4242.1,4241.5,0.001]
[1754843979350,3.631,4242.0,4241.5,0.001]
[1754843979559,5.98838848,4242.0,4241.5,0.001]
[1754843979754,6.44638848,4242.0,4241.9,0.1176]
[1754843980150,4.089,4242.0,4241.9,0.1176]
[1754843980547,6.44637859,4242.0,4241.9,0.1176]
[1754843980750,6.99637859,4242.0,4241.9,0.1176]
[1754843981270,0.55,4241.7,4241.5,0.001]
[1754843981508,3.63,4241.6,4241.5,0.001]
[1754843982070,3.63,4241.6,4241.5,0.1186]
[1754843984232,0.55,4241.7,4241.5,0.1186]
[1754843984438,3.629,4241.6,4241.5,3.38165648]
[1754843984764,0.55,4242.3,4242.1,0.1176]
[1754843984979,4.179,4242.2,4242.1,0.454]
[1754843985150,4.179,4242.2,4242.1,0.5716]
[1754843985595,3.629,4242.2,4242.1,0.5716]
[1754843985756,3.629,4242.2,4242.1,3.38031921]
[1754843987182,3.629,4242.2,4242.1,3.38032302]
[1754843987384,3.629,4242.2,4242.1,2.92892302]
[1754843989373,3.629,4242.2,4242.1,0.5716]
[1754843990585,3.629,4242.2,4242.1,2.92892302]
[1754843992297,3.629,4242.2,4242.1,0.1176]
[1754843993093,4.1074,4242.2,4242.1,0.1176]
[1754843994022,3.629,4242.2,4242.1,0.1176]
[1754843995013,3.629,4242.2,4242.1,2.47492302]
[1754843995378,3.631,4242.2,4242.1,2.47492302]
[1754843995902,3.631,4242.2,4242.1,0.1176]
[1754843996090,4.1094,4242.2,4242.1,0.1176]
[1754843996410,5.81480046,4242.2,4242.1,0.1176]
[1754843996813,5.35230046,4242.2,4242.1,0.1176]
[1754843997295,0.002,4242.2,4242.1,0.1176]
[1754843997501,3.626,4242.2,4242.1,2.93692302]
[1754843997706,0.002,4242.2,4242.1,2.93692302]
[1754843997900,3.626,4242.2,4242.1,2.93692302]
[1754843999095,3.626,4242.2,4242.1,0.5796]
[1754843999296,3.626,4242.2,4242.1,0.1176]
[1754843999501,3.626,4242.2,4242.1,2.47492302]
[1754843999895,3.626,4242.2,4242.1,0.1176]
[1754844001534,3.626,4242.2,4242.1,2.47492302]
[1754844001535,0.002,4242.2,4242.1,2.47492302]
[1754844001725,0.002,4242.2,4242.1,3.79318788]
[1754844002512,0.002,4242.2,4242.1,3.34178788]
[1754844002712,0.002,4242.2,4242.1,2.93692302]
[1754844003403,0.002,4242.2,4242.1,2.47492302]
[1754844003826,0.002,4242.2,4242.1,2.93692302]
[1754844004303,0.002,4242.2,4242.1,0.1176]
[1754844004508,0.4804,4242.2,4242.1,0.1176]
[1754844004703,0.002,4242.2,4242.1,0.1176]
[1754844004910,3.80516745,4242.2,4242.1,0.1176]
[1754844005108,1.9104,4242.2,4242.1,0.1176]
[1754844005506,4.26766745,4242.2,4242.1,0.1176]
[1754844006803,0.55,4241.9,4241.7,0.1176]
[1754844007004,4.173,4241.8,4241.7,0.1176]
[1754844007204,4.6514,4241.8,4241.7,0.1176]
[1754844008124,8.21852512,4241.8,4241.7,0.1176]
[1754844008353,2.9076009,4241.6,4241.5,0.001]
[1754844008511,2.9076009,4241.6,4241.5,0.1186]
[1754844008848,2.9076009,4241.6,4241.5,0.001]
[1754844008849,16.60676023,4241.6,4241.5,0.001]
[1754844009048,19.83219813,4241.6,4241.5,0.001]